[Event "Titled Tuesday Blitz June 07 Early 2022"]
[White "Bortnyk, Olexandr"]
[Black "Costachi, Mihnea"]
[WhiteFideId "14120828"]
[BlackFideId "1217518"]
[WhiteElo "2723"]
[BlackElo "2476"]
[Result "1/2-1/2"]
[Round "10"]
[TimeControl "180+1"]
[Date "2022.06.07"]
[WhiteClock "0:00:02"]
[BlackClock "0:00:03"]

1. d4 {[%clk 0:03:00]}  Nf6 {[%clk 0:02:59]} 2. Nc3 {[%clk 0:03:01]}  d5 {[%clk 0:02:58]} 3. Bf4 {[%clk 0:03:01]}  c6 {[%clk 0:02:58]} 4. e3 {[%clk 0:03:01]}  Bf5 {[%clk 0:02:59]} 5. Nf3 {[%clk 0:03:01]}  h6 {[%clk 0:02:57]} 6. Bd3 {[%clk 0:02:59]}  Bxd3 {[%clk 0:02:56]} 7. cxd3 {[%clk 0:03:00]}  e6 {[%clk 0:02:57]} 8. O-O {[%clk 0:03:00]}  Bd6 {[%clk 0:02:54]} 9. Ne5 {[%clk 0:03:00]}  O-O {[%clk 0:02:52]} 10. Qb3 {[%clk 0:03:00]}  Qb6 {[%clk 0:02:42]} 11. Rfc1 {[%clk 0:02:28]}  Bxe5 {[%clk 0:02:41]} 12. Bxe5 {[%clk 0:02:26]}  Nbd7 {[%clk 0:02:41]} 13. Bd6 {[%clk 0:02:25]}  Qxb3 {[%clk 0:02:36]} 14. axb3 {[%clk 0:02:24]}  Rfe8 {[%clk 0:02:37]} 15. b4 {[%clk 0:02:23]}  a6 {[%clk 0:02:37]} 16. h3 {[%clk 0:02:18]}  Rad8 {[%clk 0:02:19]} 17. Na4 {[%clk 0:02:13]}  e5 {[%clk 0:02:16]} 18. dxe5 {[%clk 0:01:52]}  Nxe5 {[%clk 0:02:15]} 19. Bc7 {[%clk 0:01:32]}  Rc8 {[%clk 0:02:15]} 20. Bxe5 {[%clk 0:01:24]}  Rxe5 {[%clk 0:02:16]} 21. Nc5 {[%clk 0:01:10]}  Re7 {[%clk 0:02:11]} 22. Kf1 {[%clk 0:01:06]}  Rb8 {[%clk 0:02:10]} 23. g4 {[%clk 0:01:01]}  Nd7 {[%clk 0:02:10]} 24. Ra3 {[%clk 0:00:57]}  Nxc5 {[%clk 0:02:07]} 25. bxc5 {[%clk 0:00:58]}  Kf8 {[%clk 0:01:59]} 26. Rb3 {[%clk 0:00:57]}  Rd8 {[%clk 0:01:55]} 27. Ke2 {[%clk 0:00:52]}  Rdd7 {[%clk 0:01:55]} 28. Kd2 {[%clk 0:00:52]}  Ke8 {[%clk 0:01:55]} 29. Kc3 {[%clk 0:00:52]}  Kd8 {[%clk 0:01:56]} 30. Kb4 {[%clk 0:00:53]}  Kc7 {[%clk 0:01:56]} 31. Ka5 {[%clk 0:00:52]}  d4 {[%clk 0:01:49]} 32. e4 {[%clk 0:00:52]}  g5 {[%clk 0:01:49]} 33. f4 {[%clk 0:00:52]}  gxf4 {[%clk 0:01:48]} 34. Rf1 {[%clk 0:00:52]}  Re5 {[%clk 0:01:48]} 35. Kb4 {[%clk 0:00:52]}  h5 {[%clk 0:01:29]} 36. Rxf4 {[%clk 0:00:50]}  hxg4 {[%clk 0:01:30]} 37. hxg4 {[%clk 0:00:51]}  Kd8 {[%clk 0:01:26]} 38. Kc4 {[%clk 0:00:43]}  Ke7 {[%clk 0:01:26]} 39. Ra3 {[%clk 0:00:32]}  Ke6 {[%clk 0:01:18]} 40. Ra1 {[%clk 0:00:31]}  Ke7 {[%clk 0:01:06]} 41. Rh1 {[%clk 0:00:28]}  b6 {[%clk 0:01:00]} 42. b4 {[%clk 0:00:14]}  a5 {[%clk 0:01:00]} 43. Rh7 {[%clk 0:00:07]}  Ke8 {[%clk 0:01:00]} 44. Rh5 {[%clk 0:00:04]}  b5+ {[%clk 0:00:56]} 45. Kb3 {[%clk 0:00:04]}  a4+ {[%clk 0:00:54]} 46. Kb2 {[%clk 0:00:04]}  Rxh5 {[%clk 0:00:54]} 47. gxh5 {[%clk 0:00:05]}  Ke7 {[%clk 0:00:53]} 48. e5 {[%clk 0:00:03]}  Rd5 {[%clk 0:00:47]} 49. Re4 {[%clk 0:00:02]}  Kf8 {[%clk 0:00:44]} 50. h6 {[%clk 0:00:03]}  Kg8 {[%clk 0:00:43]} 51. e6 {[%clk 0:00:03]}  Rd8 {[%clk 0:00:36]} 52. e7 {[%clk 0:00:03]}  Re8 {[%clk 0:00:37]} 53. Rxd4 {[%clk 0:00:04]}  Rxe7 {[%clk 0:00:37]} 54. Rd6 {[%clk 0:00:04]}  Re2+ {[%clk 0:00:35]} 55. Kc3 {[%clk 0:00:04]}  Re6 {[%clk 0:00:30]} 56. d4 {[%clk 0:00:04]}  Kh7 {[%clk 0:00:25]} 57. d5 {[%clk 0:00:05]}  Re3+ {[%clk 0:00:19]} 58. Kd4 {[%clk 0:00:05]}  Rb3 {[%clk 0:00:16]} 59. Rxc6 {[%clk 0:00:05]}  Rxb4+ {[%clk 0:00:16]} 60. Ke5 {[%clk 0:00:06]}  a3 {[%clk 0:00:16]} 61. Rc7 {[%clk 0:00:03]}  Kg6 {[%clk 0:00:13]} 62. h7 {[%clk 0:00:03]}  f6+ {[%clk 0:00:13]} 63. Ke6 {[%clk 0:00:02]}  Re4+ {[%clk 0:00:13]} 64. Kd6 {[%clk 0:00:02]}  Rh4 {[%clk 0:00:13]} 65. Ra7 {[%clk 0:00:02]}  b4 {[%clk 0:00:13]} 66. c6 {[%clk 0:00:03]}  Rxh7 {[%clk 0:00:12]} 67. Rxh7 {[%clk 0:00:02]}  Kxh7 {[%clk 0:00:13]} 68. c7 {[%clk 0:00:03]}  a2 {[%clk 0:00:14]} 69. c8=Q {[%clk 0:00:04]}  a1=Q {[%clk 0:00:15]} 70. Qb7+ {[%clk 0:00:03]}  Kg6 {[%clk 0:00:15]} 71. Qxb4 {[%clk 0:00:03]}  Qe5+ {[%clk 0:00:16]} 72. Kc6 {[%clk 0:00:03]}  Kf7 {[%clk 0:00:12]} 73. Qb7+ {[%clk 0:00:03]}  Kg6 {[%clk 0:00:11]} 74. Qb1+ {[%clk 0:00:02]}  f5 {[%clk 0:00:11]} 75. Qg1+ {[%clk 0:00:02]}  Kf6 {[%clk 0:00:11]} 76. Qc5 {[%clk 0:00:02]}  f4 {[%clk 0:00:10]} 77. Kb7 {[%clk 0:00:01]}  f3 {[%clk 0:00:06]} 78. Qf8+ {[%clk 0:00:02]}  Kg5 {[%clk 0:00:05]} 79. Qxf3 {[%clk 0:00:03]}  Qd6 {[%clk 0:00:05]} 80. Qe3+ {[%clk 0:00:02]}  Kf6 {[%clk 0:00:05]} 81. Qd4+ {[%clk 0:00:02]}  Ke7 {[%clk 0:00:05]} 82. Qg7+ {[%clk 0:00:02]}  Kd8 {[%clk 0:00:05]} 83. Qg8+ {[%clk 0:00:03]}  Kd7 {[%clk 0:00:05]} 84. Qc8+ {[%clk 0:00:03]}  Ke7 {[%clk 0:00:05]} 85. Qc6 {[%clk 0:00:04]}  Qb4+ {[%clk 0:00:05]} 86. Kc7 {[%clk 0:00:03]}  Qa5+ {[%clk 0:00:05]} 87. Kc8 {[%clk 0:00:03]}  Qa3 {[%clk 0:00:04]} 88. Qe6+ {[%clk 0:00:02]}  Kf8 {[%clk 0:00:05]} 89. Qf6+ {[%clk 0:00:03]}  Ke8 {[%clk 0:00:05]} 90. Qc6+ {[%clk 0:00:03]}  Ke7 {[%clk 0:00:05]} 91. Qc7+ {[%clk 0:00:03]}  Ke8 {[%clk 0:00:06]} 92. Qd7+ {[%clk 0:00:02]}  Kf8 {[%clk 0:00:06]} 93. Qd8+ {[%clk 0:00:03]}  Kf7 {[%clk 0:00:06]} 94. Kb8 {[%clk 0:00:02]}  Qb4+ {[%clk 0:00:06]} 95. Ka7 {[%clk 0:00:02]}  Qa4+ {[%clk 0:00:06]} 96. Kb7 {[%clk 0:00:02]}  Qb3+ {[%clk 0:00:06]} 97. Kc8 {[%clk 0:00:02]}  Qa3 {[%clk 0:00:03]} 98. Qd7+ {[%clk 0:00:02]}  Kf8 {[%clk 0:00:04]} 99. Qc6 {[%clk 0:00:02]}  Ke7 {[%clk 0:00:03]} 1/2-1/2


[Site "https://www.chess.com"]

[Event "Titled Tuesday Blitz June 07 Early 2022"]
[White "Djokic, Mihailo"]
[Black "Nesterov, Arseniy"]
[WhiteFideId "976440"]
[BlackFideId "24198455"]
[WhiteElo "2255"]
[BlackElo "2489"]
[Result "1-0"]
[Round "10"]
[TimeControl "180+1"]
[Date "2022.06.07"]
[WhiteClock "0:01:19"]
[BlackClock "0:00:04"]

1. e4 {[%clk 0:03:00]}  e5 {[%clk 0:03:00]} 2. Nf3 {[%clk 0:03:01]}  Nc6 {[%clk 0:03:00]} 3. Nc3 {[%clk 0:03:01]}  Nf6 {[%clk 0:03:00]} 4. Bb5 {[%clk 0:03:01]}  Bd6 {[%clk 0:03:00]} 5. Bxc6 {[%clk 0:03:01]}  dxc6 {[%clk 0:03:00]} 6. d4 {[%clk 0:03:02]}  exd4 {[%clk 0:02:57]} 7. Qxd4 {[%clk 0:03:03]}  c5 {[%clk 0:02:51]} 8. Qd3 {[%clk 0:03:03]}  Nd7 {[%clk 0:02:46]} 9. Bg5 {[%clk 0:03:01]}  f6 {[%clk 0:02:45]} 10. Be3 {[%clk 0:03:01]}  O-O {[%clk 0:02:42]} 11. O-O-O {[%clk 0:02:59]}  Qe8 {[%clk 0:02:24]} 12. Nb5 {[%clk 0:02:54]}  Qe6 {[%clk 0:01:51]} 13. Kb1 {[%clk 0:02:27]}  b6 {[%clk 0:01:43]} 14. Nxd6 {[%clk 0:02:14]}  cxd6 {[%clk 0:01:44]} 15. Bf4 {[%clk 0:02:09]}  Re8 {[%clk 0:01:35]} 16. Rhe1 {[%clk 0:02:01]}  Ne5 {[%clk 0:01:18]} 17. Qxd6 {[%clk 0:01:58]}  Qxd6 {[%clk 0:01:17]} 18. Rxd6 {[%clk 0:01:59]}  Nxf3 {[%clk 0:01:18]} 19. gxf3 {[%clk 0:01:59]}  Kf7 {[%clk 0:01:16]} 20. Red1 {[%clk 0:01:57]}  Bh3 {[%clk 0:01:12]} 21. Kc1 {[%clk 0:01:52]}  Re6 {[%clk 0:00:59]} 22. Rd7+ {[%clk 0:01:52]}  Re7 {[%clk 0:00:59]} 23. R7d5 {[%clk 0:01:48]}  h6 {[%clk 0:00:43]} 24. Bg3 {[%clk 0:01:41]}  Be6 {[%clk 0:00:40]} 25. R5d3 {[%clk 0:01:39]}  Bc4 {[%clk 0:00:39]} 26. Rc3 {[%clk 0:01:37]}  Be6 {[%clk 0:00:38]} 27. a3 {[%clk 0:01:35]}  Rd7 {[%clk 0:00:36]} 28. Rxd7+ {[%clk 0:01:35]}  Bxd7 {[%clk 0:00:37]} 29. Kd2 {[%clk 0:01:35]}  Bb5 {[%clk 0:00:33]} 30. Ke3 {[%clk 0:01:34]}  Rd8 {[%clk 0:00:32]} 31. b4 {[%clk 0:01:35]}  cxb4 {[%clk 0:00:25]} 32. axb4 {[%clk 0:01:35]}  Rd7 {[%clk 0:00:21]} 33. Rc8 {[%clk 0:01:34]}  Ba6 {[%clk 0:00:20]} 34. Ra8 {[%clk 0:01:30]}  Bc4 {[%clk 0:00:20]} 35. Bb8 {[%clk 0:01:26]}  a6 {[%clk 0:00:19]} 36. Ba7 {[%clk 0:01:24]}  b5 {[%clk 0:00:16]} 37. Bd4 {[%clk 0:01:24]}  Rd6 {[%clk 0:00:13]} 38. Bc5 {[%clk 0:01:23]}  Rc6 {[%clk 0:00:10]} 39. Ra7+ {[%clk 0:01:23]}  Kg8 {[%clk 0:00:10]} 40. c3 {[%clk 0:01:23]}  Re6 {[%clk 0:00:09]} 41. f4 {[%clk 0:01:22]}  Rc6 {[%clk 0:00:08]} 42. f3 {[%clk 0:01:22]}  Re6 {[%clk 0:00:07]} 43. f5 {[%clk 0:01:23]}  Rc6 {[%clk 0:00:08]} 44. f4 {[%clk 0:01:23]}  Rc8 {[%clk 0:00:07]} 45. e5 {[%clk 0:01:22]}  Rd8 {[%clk 0:00:06]} 46. Bd4 {[%clk 0:01:20]}  Rf8 {[%clk 0:00:04]} 47. e6 {[%clk 0:01:20]}  Re8 {[%clk 0:00:03]} 48. Rxa6 {[%clk 0:01:20]}  Bb3 {[%clk 0:00:04]} 49. Rb6 {[%clk 0:01:20]}  Bc2 {[%clk 0:00:04]} 50. Rxb5 {[%clk 0:01:19]} 1-0


[Site "https://www.chess.com"]

[Event "Titled Tuesday Blitz June 07 Early 2022"]
[White "Gong, Patrick"]
[Black "Cardoso Cardoso, Jose Gabriel"]
[WhiteFideId "3222500"]
[BlackFideId "4430492"]
[WhiteElo "2103"]
[BlackElo "2485"]
[Result "1-0"]
[Round "10"]
[TimeControl "180+1"]
[Date "2022.06.07"]
[WhiteClock "0:00:08"]
[BlackClock "0:00:02"]

1. g3 {[%clk 0:03:00]}  g6 {[%clk 0:02:55]} 2. Bg2 {[%clk 0:03:00]}  Bg7 {[%clk 0:02:56]} 3. e4 {[%clk 0:03:00]}  c5 {[%clk 0:02:46]} 4. Nc3 {[%clk 0:02:58]}  Nc6 {[%clk 0:02:46]} 5. Nh3 {[%clk 0:02:56]}  Rb8 {[%clk 0:02:43]} 6. O-O {[%clk 0:02:52]}  b5 {[%clk 0:02:43]} 7. d3 {[%clk 0:02:50]}  b4 {[%clk 0:02:39]} 8. Nd5 {[%clk 0:02:44]}  a5 {[%clk 0:02:37]} 9. Rb1 {[%clk 0:02:31]}  d6 {[%clk 0:02:35]} 10. f4 {[%clk 0:02:21]}  Bb7 {[%clk 0:02:28]} 11. f5 {[%clk 0:02:17]}  Nf6 {[%clk 0:02:26]} 12. Nxf6+ {[%clk 0:02:12]}  Bxf6 {[%clk 0:02:23]} 13. Bh6 {[%clk 0:02:04]}  Rg8 {[%clk 0:02:12]} 14. fxg6 {[%clk 0:02:01]}  hxg6 {[%clk 0:02:06]} 15. Be3 {[%clk 0:01:54]}  Qd7 {[%clk 0:02:01]} 16. Nf4 {[%clk 0:01:52]}  Ne5 {[%clk 0:02:00]} 17. Bh3 {[%clk 0:01:44]}  Qc7 {[%clk 0:01:58]} 18. c3 {[%clk 0:01:43]}  Rh8 {[%clk 0:01:51]} 19. Bg2 {[%clk 0:01:40]}  Qd7 {[%clk 0:01:44]} 20. h3 {[%clk 0:01:38]}  g5 {[%clk 0:01:34]} 21. Nh5 {[%clk 0:01:33]}  Ba6 {[%clk 0:01:22]} 22. c4 {[%clk 0:01:23]}  Qe6 {[%clk 0:01:21]} 23. Rxf6 {[%clk 0:01:21]}  Qd7 {[%clk 0:01:12]} 24. Rf2 {[%clk 0:01:13]}  Kd8 {[%clk 0:01:08]} 25. Bxg5 {[%clk 0:01:11]}  f6 {[%clk 0:01:08]} 26. Nxf6 {[%clk 0:01:10]}  exf6 {[%clk 0:01:09]} 27. Bxf6+ {[%clk 0:01:09]}  Kc7 {[%clk 0:01:09]} 28. Bxh8 {[%clk 0:01:08]}  Rxh8 {[%clk 0:01:10]} 29. Qd2 {[%clk 0:01:06]}  Bc8 {[%clk 0:01:05]} 30. Rbf1 {[%clk 0:01:02]}  Qh7 {[%clk 0:01:01]} 31. h4 {[%clk 0:00:54]}  Rg8 {[%clk 0:00:56]} 32. d4 {[%clk 0:00:47]}  cxd4 {[%clk 0:00:38]} 33. Qxd4 {[%clk 0:00:47]}  Rxg3 {[%clk 0:00:36]} 34. c5 {[%clk 0:00:47]}  Qg7 {[%clk 0:00:21]} 35. Qxd6+ {[%clk 0:00:33]}  Kb7 {[%clk 0:00:21]} 36. c6+ {[%clk 0:00:29]}  Ka7 {[%clk 0:00:13]} 37. Rf7+ {[%clk 0:00:16]}  Nxf7 {[%clk 0:00:12]} 38. Qc7+ {[%clk 0:00:16]}  Ka6 {[%clk 0:00:12]} 39. Qxc8+ {[%clk 0:00:16]}  Kb5 {[%clk 0:00:11]} 40. Qb7+ {[%clk 0:00:13]}  Ka4 {[%clk 0:00:11]} 41. Rf2 {[%clk 0:00:09]}  Nd6 {[%clk 0:00:02]} 42. Qxg7 {[%clk 0:00:09]}  Rxg7 {[%clk 0:00:03]} 43. e5 {[%clk 0:00:07]}  Nb5 {[%clk 0:00:03]} 44. Kf1 {[%clk 0:00:04]}  Nd4 {[%clk 0:00:04]} 45. Bd5 {[%clk 0:00:04]}  Re7 {[%clk 0:00:03]} 46. Re2 {[%clk 0:00:03]}  Nxe2 {[%clk 0:00:03]} 47. b3+ {[%clk 0:00:03]}  Kb5 {[%clk 0:00:03]} 48. Bc4+ {[%clk 0:00:03]}  Kxc6 {[%clk 0:00:03]} 49. Kxe2 {[%clk 0:00:04]}  Rxe5+ {[%clk 0:00:04]} 50. Kf3 {[%clk 0:00:05]}  Kc5 {[%clk 0:00:03]} 51. Kg4 {[%clk 0:00:05]}  a4 {[%clk 0:00:03]} 52. h5 {[%clk 0:00:06]}  a3 {[%clk 0:00:02]} 53. h6 {[%clk 0:00:06]}  Re7 {[%clk 0:00:02]} 54. Kg5 {[%clk 0:00:06]}  Kd4 {[%clk 0:00:02]} 55. Bg8 {[%clk 0:00:06]}  Kc3 {[%clk 0:00:02]} 56. Kg6 {[%clk 0:00:06]}  Kb2 {[%clk 0:00:02]} 57. Bf7 {[%clk 0:00:07]}  Re4 {[%clk 0:00:01]} 58. h7 {[%clk 0:00:07]}  Rg4+ {[%clk 0:00:02]} 59. Kh6 {[%clk 0:00:07]}  Rg1 {[%clk 0:00:02]} 60. h8=Q+ {[%clk 0:00:07]}  Kxa2 {[%clk 0:00:03]} 61. Bh5 {[%clk 0:00:07]}  Rb1 {[%clk 0:00:02]} 62. Qd4 {[%clk 0:00:07]}  Rxb3 {[%clk 0:00:02]} 63. Bf7 {[%clk 0:00:08]}  Kb1 {[%clk 0:00:01]} 64. Bxb3 {[%clk 0:00:08]}  a2 {[%clk 0:00:02]} 65. Bxa2+ {[%clk 0:00:08]} 1-0


[Site "https://www.chess.com"]

[Event "Titled Tuesday Blitz June 07 Early 2022"]
[White "Gunina, Valentina"]
[Black "Adla, Diego"]
[WhiteFideId "4167570"]
[BlackFideId "100072"]
[WhiteElo "2386"]
[BlackElo "2377"]
[Result "1-0"]
[Round "10"]
[TimeControl "180+1"]
[Date "2022.06.07"]
[WhiteClock "0:01:43"]
[BlackClock "0:01:20"]

1. e4 {[%clk 0:03:00]}  e5 {[%clk 0:03:00]} 2. Nf3 {[%clk 0:03:00]}  Nc6 {[%clk 0:02:59]} 3. Bc4 {[%clk 0:03:01]}  Nf6 {[%clk 0:02:59]} 4. d3 {[%clk 0:03:01]}  Bc5 {[%clk 0:02:59]} 5. c3 {[%clk 0:03:00]}  O-O {[%clk 0:02:59]} 6. Bg5 {[%clk 0:02:59]}  h6 {[%clk 0:02:58]} 7. Bh4 {[%clk 0:02:59]}  Be7 {[%clk 0:02:58]} 8. O-O {[%clk 0:02:57]}  d6 {[%clk 0:02:47]} 9. Nbd2 {[%clk 0:02:55]}  a5 {[%clk 0:02:43]} 10. a4 {[%clk 0:02:55]}  Be6 {[%clk 0:02:36]} 11. Qb3 {[%clk 0:02:54]}  Qd7 {[%clk 0:02:30]} 12. Rae1 {[%clk 0:02:51]}  Rab8 {[%clk 0:02:25]} 13. Kh1 {[%clk 0:02:51]}  Nh7 {[%clk 0:02:17]} 14. Bg3 {[%clk 0:02:46]}  Ng5 {[%clk 0:02:13]} 15. Nxg5 {[%clk 0:02:46]}  hxg5 {[%clk 0:02:10]} 16. f3 {[%clk 0:02:39]}  b6 {[%clk 0:02:03]} 17. Rf2 {[%clk 0:02:36]}  Nd8 {[%clk 0:02:00]} 18. Nf1 {[%clk 0:02:36]}  Bxc4 {[%clk 0:01:57]} 19. Qxc4 {[%clk 0:02:34]}  Ne6 {[%clk 0:01:58]} 20. Ne3 {[%clk 0:02:33]}  b5 {[%clk 0:01:48]} 21. axb5 {[%clk 0:02:29]}  Qxb5 {[%clk 0:01:49]} 22. Qxb5 {[%clk 0:01:57]}  Rxb5 {[%clk 0:01:48]} 23. Nd5 {[%clk 0:01:57]}  Rfb8 {[%clk 0:01:46]} 24. Nxe7+ {[%clk 0:01:57]}  Kf8 {[%clk 0:01:43]} 25. Nd5 {[%clk 0:01:57]}  Rxb2 {[%clk 0:01:42]} 26. h3 {[%clk 0:01:54]}  c6 {[%clk 0:01:40]} 27. Ne3 {[%clk 0:01:53]}  a4 {[%clk 0:01:39]} 28. Ra1 {[%clk 0:01:53]}  Rxf2 {[%clk 0:01:36]} 29. Bxf2 {[%clk 0:01:53]}  Rb3 {[%clk 0:01:35]} 30. Rxa4 {[%clk 0:01:46]}  Rxc3 {[%clk 0:01:34]} 31. Nf5 {[%clk 0:01:47]}  Kg8 {[%clk 0:01:25]} 32. Ra8+ {[%clk 0:01:44]}  Kh7 {[%clk 0:01:26]} 33. Nxd6 {[%clk 0:01:44]}  Rxd3 {[%clk 0:01:23]} 34. Nxf7 {[%clk 0:01:45]}  Nf4 {[%clk 0:01:21]} 35. Rh8+ {[%clk 0:01:43]}  Kg6 {[%clk 0:01:20]} 36. Nxe5+ {[%clk 0:01:43]} 1-0


[Site "https://www.chess.com"]

[Event "Titled Tuesday Blitz June 07 Early 2022"]
[White "Jumabayev, Rinat"]
[Black "Jeet, Jain"]
[WhiteFideId "13702661"]
[BlackFideId "5073022"]
[WhiteElo "2561"]
[BlackElo "2055"]
[Result "1-0"]
[Round "10"]
[TimeControl "180+1"]
[Date "2022.06.07"]
[WhiteClock "0:00:26"]
[BlackClock "0:00:06"]

1. e4 {[%clk 0:03:00]}  e6 {[%clk 0:02:46]} 2. d4 {[%clk 0:03:00]}  d5 {[%clk 0:02:46]} 3. Nd2 {[%clk 0:03:00]}  dxe4 {[%clk 0:02:46]} 4. Nxe4 {[%clk 0:03:01]}  Bd7 {[%clk 0:02:45]} 5. Nf3 {[%clk 0:03:00]}  Bc6 {[%clk 0:02:45]} 6. Bd3 {[%clk 0:03:01]}  Nd7 {[%clk 0:02:45]} 7. O-O {[%clk 0:03:00]}  Be7 {[%clk 0:02:45]} 8. Re1 {[%clk 0:03:00]}  Ngf6 {[%clk 0:02:45]} 9. Neg5 {[%clk 0:02:57]}  O-O {[%clk 0:02:43]} 10. Ne5 {[%clk 0:02:53]}  h6 {[%clk 0:02:32]} 11. Nh3 {[%clk 0:02:06]}  Nxe5 {[%clk 0:02:14]} 12. dxe5 {[%clk 0:02:06]}  Nd5 {[%clk 0:02:09]} 13. a3 {[%clk 0:02:06]}  Nb6 {[%clk 0:01:34]} 14. Qg4 {[%clk 0:01:56]}  Kh8 {[%clk 0:01:29]} 15. Qh5 {[%clk 0:01:57]}  Qd5 {[%clk 0:01:09]} 16. Nf4 {[%clk 0:01:35]}  Qa5 {[%clk 0:01:00]} 17. Re3 {[%clk 0:01:15]}  Bg5 {[%clk 0:00:54]} 18. b4 {[%clk 0:01:13]}  Qa4 {[%clk 0:00:44]} 19. Rg3 {[%clk 0:00:58]}  f6 {[%clk 0:00:21]} 20. Ng6+ {[%clk 0:00:48]}  Kg8 {[%clk 0:00:21]} 21. Ne7+ {[%clk 0:00:48]}  Kh8 {[%clk 0:00:20]} 22. Qg6 {[%clk 0:00:46]}  f5 {[%clk 0:00:17]} 23. Bxg5 {[%clk 0:00:46]}  Be8 {[%clk 0:00:13]} 24. Qxe6 {[%clk 0:00:35]}  Bf7 {[%clk 0:00:10]} 25. Qxh6+ {[%clk 0:00:30]}  gxh6 {[%clk 0:00:10]} 26. Bf6+ {[%clk 0:00:30]}  Kh7 {[%clk 0:00:08]} 27. Rg7+ {[%clk 0:00:26]}  Kh8 {[%clk 0:00:06]} 28. Rxf7# {[%clk 0:00:26]} 1-0


[Site "https://www.chess.com"]

[Event "Titled Tuesday Blitz June 07 Early 2022"]
[White "Khamdamova, Afruza"]
[Black "Shipov, Sergei"]
[WhiteFideId "14210444"]
[BlackFideId "4113624"]
[WhiteElo "1660"]
[BlackElo "2778"]
[Result "0-1"]
[Round "10"]
[TimeControl "180+1"]
[Date "2022.06.07"]
[WhiteClock "0:00:15"]
[BlackClock "0:00:42"]

1. e4 {[%clk 0:03:00]}  e6 {[%clk 0:02:56]} 2. d4 {[%clk 0:03:00]}  d5 {[%clk 0:02:56]} 3. Nd2 {[%clk 0:03:00]}  Be7 {[%clk 0:02:56]} 4. Ngf3 {[%clk 0:02:59]}  Nf6 {[%clk 0:02:55]} 5. Bd3 {[%clk 0:02:56]}  c5 {[%clk 0:02:55]} 6. exd5 {[%clk 0:02:53]}  Qxd5 {[%clk 0:02:54]} 7. dxc5 {[%clk 0:02:47]}  Nbd7 {[%clk 0:02:53]} 8. O-O {[%clk 0:02:44]}  Nxc5 {[%clk 0:02:52]} 9. Bc4 {[%clk 0:02:44]}  Qd6 {[%clk 0:02:49]} 10. Nb3 {[%clk 0:02:36]}  a6 {[%clk 0:02:39]} 11. Be3 {[%clk 0:02:32]}  Na4 {[%clk 0:02:37]} 12. Qxd6 {[%clk 0:02:21]}  Bxd6 {[%clk 0:02:37]} 13. Rfd1 {[%clk 0:02:20]}  Nxb2 {[%clk 0:02:19]} 14. Rxd6 {[%clk 0:02:19]}  Nxc4 {[%clk 0:02:19]} 15. Rd3 {[%clk 0:02:19]}  Nxe3 {[%clk 0:02:17]} 16. Rxe3 {[%clk 0:02:19]}  b6 {[%clk 0:02:11]} 17. Rd1 {[%clk 0:02:18]}  Bb7 {[%clk 0:02:10]} 18. Ne5 {[%clk 0:02:16]}  Ke7 {[%clk 0:02:07]} 19. Red3 {[%clk 0:02:15]}  Be4 {[%clk 0:01:49]} 20. R3d2 {[%clk 0:02:10]}  Rhc8 {[%clk 0:01:46]} 21. c4 {[%clk 0:02:08]}  Rc7 {[%clk 0:01:46]} 22. f3 {[%clk 0:02:06]}  Bc6 {[%clk 0:01:39]} 23. Nd4 {[%clk 0:01:51]}  Ba4 {[%clk 0:01:39]} 24. Rb1 {[%clk 0:01:49]}  Rb8 {[%clk 0:01:29]} 25. Rb4 {[%clk 0:01:46]}  Be8 {[%clk 0:01:21]} 26. Rdb2 {[%clk 0:01:42]}  Rc5 {[%clk 0:01:15]} 27. f4 {[%clk 0:01:38]}  b5 {[%clk 0:01:14]} 28. cxb5 {[%clk 0:01:35]}  Nd5 {[%clk 0:01:13]} 29. R4b3 {[%clk 0:01:20]}  axb5 {[%clk 0:01:13]} 30. Nd3 {[%clk 0:01:13]}  Rc4 {[%clk 0:01:07]} 31. Nxb5 {[%clk 0:01:06]}  Nxf4 {[%clk 0:01:06]} 32. Nxf4 {[%clk 0:00:55]}  Rxf4 {[%clk 0:01:05]} 33. Nc3 {[%clk 0:00:53]}  Rxb3 {[%clk 0:01:05]} 34. axb3 {[%clk 0:00:52]}  f5 {[%clk 0:00:54]} 35. b4 {[%clk 0:00:52]}  Rc4 {[%clk 0:00:54]} 36. Nb1 {[%clk 0:00:50]}  Bc6 {[%clk 0:00:51]} 37. b5 {[%clk 0:00:44]}  Bb7 {[%clk 0:00:51]} 38. Nd2 {[%clk 0:00:42]}  Ra4 {[%clk 0:00:48]} 39. Rc2 {[%clk 0:00:37]}  Bd5 {[%clk 0:00:47]} 40. Rc7+ {[%clk 0:00:36]}  Kf6 {[%clk 0:00:47]} 41. b6 {[%clk 0:00:33]}  Rb4 {[%clk 0:00:47]} 42. Nf3 {[%clk 0:00:17]}  Rxb6 {[%clk 0:00:45]} 43. Nd4 {[%clk 0:00:15]}  Rb1+ {[%clk 0:00:42]} 44. Kf2 {[%clk 0:00:15]}  Rb2+ {[%clk 0:00:42]} 0-1


[Site "https://www.chess.com"]

[Event "Titled Tuesday Blitz June 07 Early 2022"]
[White "Kosteniuk, Alexandra"]
[Black "Molina, Roberto Junio Brito"]
[WhiteFideId "4128125"]
[BlackFideId "2109450"]
[WhiteElo "2469"]
[BlackElo "2432"]
[Result "1/2-1/2"]
[Round "10"]
[TimeControl "180+1"]
[Date "2022.06.07"]
[WhiteClock "0:01:08"]
[BlackClock "0:01:35"]

1. e4 {[%clk 0:03:00]}  c6 {[%clk 0:02:59]} 2. Nc3 {[%clk 0:03:00]}  d5 {[%clk 0:03:00]} 3. Nf3 {[%clk 0:03:00]}  dxe4 {[%clk 0:03:00]} 4. Nxe4 {[%clk 0:03:01]}  Bg4 {[%clk 0:03:00]} 5. h3 {[%clk 0:02:58]}  Bxf3 {[%clk 0:03:00]} 6. Qxf3 {[%clk 0:02:58]}  Nd7 {[%clk 0:03:00]} 7. d4 {[%clk 0:02:57]}  Ndf6 {[%clk 0:02:59]} 8. Nxf6+ {[%clk 0:02:45]}  Nxf6 {[%clk 0:02:59]} 9. Qd3 {[%clk 0:02:33]}  Qd5 {[%clk 0:02:54]} 10. c4 {[%clk 0:02:29]}  Qe4+ {[%clk 0:02:54]} 11. Be3 {[%clk 0:02:25]}  Qxd3 {[%clk 0:02:51]} 12. Bxd3 {[%clk 0:02:25]}  e6 {[%clk 0:02:52]} 13. O-O {[%clk 0:02:19]}  O-O-O {[%clk 0:02:48]} 14. Rfd1 {[%clk 0:02:17]}  g6 {[%clk 0:02:43]} 15. Rab1 {[%clk 0:02:16]}  Bg7 {[%clk 0:02:42]} 16. b4 {[%clk 0:02:11]}  Rd7 {[%clk 0:02:36]} 17. b5 {[%clk 0:02:09]}  cxb5 {[%clk 0:02:36]} 18. Rxb5 {[%clk 0:02:06]}  Ne8 {[%clk 0:02:31]} 19. Be2 {[%clk 0:01:59]}  Nc7 {[%clk 0:02:28]} 20. Rb3 {[%clk 0:01:56]}  Rhd8 {[%clk 0:02:27]} 21. Bf3 {[%clk 0:01:55]}  b6 {[%clk 0:02:09]} 22. c5 {[%clk 0:01:47]}  Bxd4 {[%clk 0:02:04]} 23. cxb6 {[%clk 0:01:25]}  axb6 {[%clk 0:01:53]} 24. Bxd4 {[%clk 0:01:20]}  Rxd4 {[%clk 0:01:54]} 25. Rxd4 {[%clk 0:01:20]}  Rxd4 {[%clk 0:01:55]} 26. Rxb6 {[%clk 0:01:20]}  Rd2 {[%clk 0:01:43]} 27. a4 {[%clk 0:01:16]}  Ra2 {[%clk 0:01:42]} 28. Rb4 {[%clk 0:01:13]}  Kd7 {[%clk 0:01:41]} 29. Rd4+ {[%clk 0:01:09]}  Ke7 {[%clk 0:01:38]} 30. Bc6 {[%clk 0:01:08]}  Nd5 {[%clk 0:01:35]} 1/2-1/2


[Site "https://www.chess.com"]